fUST/lending_fUST_20241004
["ID","MTS","AMOUNT","RATE_DAILY","PERIOD"]
[339771618,1727976640950,-500.0,0.00013698,2]
[339771619,1727976640959,-500.0,0.00013698,2]
[339771620,1727976640969,-697.35,0.00013698,2]
[339771621,1727976640979,-500.0,0.00013698,2]
[339771622,1727976640989,-500.0,0.00013698,2]
[339771623,1727976640998,-500.0,0.00013698,2]
[339771624,1727976641009,-500.88851412,0.00013698,2]
[339771625,1727976641018,-500.0,0.00013698,2]
[339771626,1727976641027,-587.56,0.00013698,2]
[339771627,1727976641036,-703.53,0.00013698,2]
[339771628,1727976641046,-500.66143927,0.00013698,2]
[339771629,1727976641055,-500.0,0.00013698,2]
[339771630,1727976641065,-500.0,0.00013698,2]
[339771631,1727976641074,-539.67,0.00013698,2]
[339771632,1727976641083,-500.0,0.00013698,2]
[339771633,1727976641092,-500.0,0.00013698,2]
[339771634,1727976641103,-500.0,0.00013698,2]
[339771635,1727976641113,-500.0,0.00013698,2]
[339771636,1727976641128,-528.58335533,0.00013698,2]
[339771637,1727976641137,-500.0,0.00013698,2]
[339771638,1727976641146,-500.0,0.00013698,2]
[339771639,1727976641155,-755.77,0.00013698,2]
[339771640,1727976641164,-500.0,0.00013698,2]
[339771641,1727976641173,-500.0,0.00013698,2]
[339771642,1727976641183,-500.0,0.00013698,2]
[339771643,1727976641193,-500.0,0.00013698,2]
[339771644,1727976641202,-500.0,0.00013698,2]
[339771645,1727976641211,-500.0,0.00013698,2]
[339771646,1727976641220,-500.0,0.00013698,2]
[339771647,1727976641230,-500.0,0.00013698,2]
[339771648,1727976641240,-500.0,0.00013698,2]
[339771649,1727976641249,-500.0,0.00013698,2]
[339771650,1727976641258,-196.65103792,0.00013698,2]
[339771668,1727976646120,-181.75338535,0.00012503,2]
[339771669,1727976646136,-3091.09272843,0.00013688,2]
[339771670,1727976646148,-303.34896208,0.00013698,2]
[339771671,1727976646159,-500.0,0.00013698,2]
[339771672,1727976646170,-500.0,0.00013698,2]
[339771673,1727976646181,-500.0,0.00013698,2]
[339771674,1727976646192,-536.43834119,0.00013698,2]
[339771675,1727976646202,-277.217913,0.00013698,2]
[339771676,1727976646214,-500.0,0.00013698,2]
[339771677,1727976646226,-500.0,0.00013698,2]
[339771678,1727976646237,-500.0,0.00013698,2]
[339771679,1727976646248,-500.0,0.00013698,2]
[339771680,1727976646259,-1012.91,0.00013698,2]
[339771681,1727976646270,-500.0,0.00013698,2]
[339771682,1727976646281,-500.0,0.00013698,2]
[339771683,1727976646290,-500.0,0.00013698,2]
[339771684,1727976646301,-277.217913,0.00013698,2]
[339771685,1727976646312,-500.0,0.00013698,2]
[339771686,1727976646322,-500.0,0.00013698,2]
[339771687,1727976646333,-500.0,0.00013698,2]
[339771688,1727976646344,-500.0,0.00013698,2]
[339771689,1727976646354,-743.37,0.00013698,2]
[339771690,1727976646368,-500.0,0.00013698,2]
[339771691,1727976646383,-829.08,0.00013698,2]
[339771692,1727976646394,-928.41,0.00013698,2]
[339771693,1727976646405,-254.05118698,0.00013698,2]
[339771694,1727976646417,-500.0,0.00013698,2]
[339771695,1727976646427,-500.0,0.00013698,2]
[339771696,1727976646436,-500.0,0.00013698,5]
[339771697,1727976646446,-603.78,0.00013698,2]
[339771698,1727976646455,-500.0,0.00013698,2]
[339771699,1727976646465,-500.36826614,0.00013698,2]
[339771700,1727976646478,-500.0,0.00013698,2]
[339771701,1727976646488,-488.18561771,0.00013698,2]
[339771702,1727976646497,-500.0,0.00013698,2]
[339771703,1727976646507,-340.44050449,0.00013698,2]
[339771704,1727976646518,-500.0,0.00013698,2]
[339771705,1727976646528,-500.0,0.00013698,2]
[339771706,1727976646539,-151.0,0.00013698,2]
[339771707,1727976646551,-500.23550126,0.00013698,2]
[339771708,1727976646561,-500.0,0.00013698,2]
[339771709,1727976646570,-579.42,0.00013698,2]
[339771710,1727976646580,-500.0,0.00013698,2]
[339771711,1727976646591,-500.0,0.00013698,2]
[339771712,1727976646602,-500.0,0.00013698,2]
[339771713,1727976646612,-500.0,0.00013698,2]
[339771714,1727976646622,-500.0,0.00013698,2]
[339771715,1727976646633,-500.0,0.00013698,2]
[339771716,1727976646643,-588.36,0.00013698,2]
[339771717,1727976646652,-151.0,0.00013698,2]
[339771718,1727976646663,-500.331281,0.00013698,2]
[339771719,1727976646673,-500.0,0.00013698,2]
[339771720,1727976646683,-500.0,0.00013698,2]
[339771721,1727976646693,-500.0,0.00013698,2]
[339771722,1727976646703,-500.0,0.00013698,2]
[339771723,1727976646713,-500.0,0.00013698,2]
[339771724,1727976646723,-585.74,0.00013698,2]
[339771725,1727976646732,-500.0,0.00013698,2]
[339771726,1727976646742,-538.7,0.00013698,2]
[339771727,1727976646753,-500.0,0.00013698,2]
[339771728,1727976646763,-500.0,0.00013698,2]
[339771729,1727976646772,-500.50724954,0.00013698,2]
[339771730,1727976646782,-500.0,0.00013698,2]
[339771731,1727976646792,-500.0,0.00013698,2]
[339771732,1727976646995,-500.0,0.00013698,2]
[339771733,1727976647006,-623.38,0.00013698,2]
[339771734,1727976647015,-500.0,0.00013698,2]
[339771735,1727976647025,-500.0,0.00013698,2]
[339771736,1727976647034,-500.0,0.00013698,2]
[339771737,1727976647043,-500.0,0.00013698,2]
[339771738,1727976647052,-500.0,0.00013698,2]
[339771739,1727976647061,-500.0,0.00013698,2]
[339771740,1727976647071,-500.0,0.00013698,2]
[339771741,1727976647080,-500.0,0.00013698,2]
[339771742,1727976647090,-415.79999785,0.00013698,2]
[339771743,1727976700344,295.95,0.00015,120]
[339771744,1727976709497,160.0,0.000209,120]
[339771749,1727977584901,186.332965,0.0001007,2]
[339771750,1727977633139,-947.38386643,0.00010522,2]
[339771751,1727977699052,155.0,0.000209,120]
[339771753,1727977763180,-181.75338535,0.00010422,2]
[339771754,1727977763205,-300.0,0.00010462,2]
[339771755,1727977763242,-300.0,0.00010462,2]
[339771756,1727977763265,-14834.3349574,0.00010463,2]
[339771757,1727977763287,-3518.41011307,0.00010522,2]
[339771758,1727977763309,-2163.7737904,0.00010544,2]
[339771759,1727977763332,-186.332965,0.000106,2]
[339771760,1727977763355,-167.2685951,0.00010791,2]
[339771761,1727977763381,-250.0,0.00010875,2]
[339771762,1727977763404,-250.0,0.00010904,2]
[339771763,1727977763427,-250.0,0.00010934,2]
[339771764,1727977763456,-1036.33,0.00010959,2]
[339771765,1727977763479,-863.61,0.00010959,2]
[339771766,1727977763517,-719.68,0.00010959,2]
[339771767,1727977763549,-250.0,0.00010964,2]
[339771768,1727977763573,-250.0,0.00010994,2]
[339771769,1727977763599,-250.0,0.00011024,2]
[339771770,1727977763631,-250.0,0.00011054,2]
[339771771,1727977763655,-250.0,0.00011083,2]
[339771772,1727977763680,-250.0,0.00011113,2]
[339771773,1727977763702,-186.332965,0.0001113,2]
[339771774,1727977763725,-250.0,0.00011143,2]
[339771775,1727977763748,-250.0,0.00011173,2]
[339771776,1727977763771,-250.0,0.00011203,2]
[339771777,1727977763794,-250.0,0.00011233,2]
[339771778,1727977763817,-250.0,0.00011262,2]
[339771779,1727977763843,-250.0,0.00011292,2]
[339771780,1727977763869,-151.0,0.0001132,2]
[339771781,1727977763892,-250.0,0.00011322,2]
[339771782,1727977763916,-250.0,0.00011352,2]
[339771783,1727977763939,-250.0,0.00011382,2]
[339771784,1727977763963,-250.0,0.00011412,2]
[339771785,1727977763986,-250.0,0.00011441,2]
[339771786,1727977764009,-420.0,0.00011502,2]
[339771787,1727977764032,-420.0,0.00011508,2]
[339771788,1727977764055,-218.776347,0.00011759,2]
[339771789,1727977764078,-218.776347,0.00011762,2]
[339771790,1727977764102,-218.776347,0.00011765,2]
[339771791,1727977764131,-218.776347,0.00011768,2]
[339771792,1727977764154,-218.776347,0.00011771,2]
[339771793,1727977764176,-218.776347,0.00011774,2]
[339771794,1727977764199,-218.776347,0.00011778,2]
[339771795,1727977764228,-218.776347,0.00011781,2]
[339771796,1727977764255,-218.776347,0.00011784,2]
[339771797,1727977764280,-218.776347,0.00011787,2]
[339771798,1727977764303,-218.776347,0.0001179,2]
[339771799,1727977764327,-218.776347,0.00011793,2]
[339771800,1727977764350,-218.776347,0.00011796,2]
[339771801,1727977764378,-218.776347,0.00011799,2]
[339771802,1727977764402,-218.776347,0.00011802,2]
[339771803,1727977764426,-218.776347,0.00011805,2]
[339771804,1727977764450,-218.776347,0.00011808,2]
[339771805,1727977764474,-155.36348688,0.00011812,2]
[339771845,1727977832386,-599.73,0.00010959,2]
[339771846,1727977832396,-499.77,0.00010959,2]
[339771847,1727977832406,-416.48,0.00010959,2]
[339771848,1727977832416,-347.07,0.00010959,2]
[339771849,1727977832431,-289.22,0.00010959,2]
[339771850,1727977832441,-241.02,0.00010959,2]
[339771851,1727977832450,-63.41286012,0.00011812,2]
[339771852,1727977832460,-218.776347,0.00011815,2]
[339771853,1727977832471,-218.776347,0.00011818,2]
[339771854,1727977832480,-151.0,0.0001211,2]
[339771855,1727977832490,-345.680969,0.00012603,2]
[339771856,1727977832499,-151.0,0.000129,2]
[339771857,1727977832509,-379.7395697,0.000129,2]
[339771858,1727977832518,-250.8387224,0.00013078,2]
[339771859,1727977832528,-150.0,0.00013482,2]
[339771860,1727977832538,-196.98800315,0.00013573,2]
[339771861,1727977832547,-300.0,0.00013586,2]
[339771862,1727977832558,-1000.0,0.00013587,2]
[339771863,1727977832567,-196.98800314,0.00013588,2]
[339771864,1727977832577,-300.0,0.00013589,2]
[339771865,1727977832587,-860.34318858,0.0001359,2]
[339771866,1727977832597,-150.0,0.00013593,2]
[339771867,1727977832606,-23423.16598984,0.00013598,2]
[339771891,1727977838407,-200.85,0.00010959,2]
[339771892,1727977838417,-625.16540506,0.00013598,2]
[339771893,1727977838427,-6576.83401016,0.00013598,2]
[339771894,1727977838438,-27753.20271295,0.0001365,2]
[339771895,1727977838450,-743.13955955,0.0001365,2]
[339771896,1727977838467,-16552.706768,0.0001365,2]
[339771897,1727977838477,-2241.6488261,0.0001365,2]
[339771898,1727977838486,-24216.97368912,0.0001366,2]
[339771899,1727977838496,-7195.04478571,0.00013671,2]
[339771900,1727977838506,-500.0,0.00013673,2]
[339771901,1727977838516,-500.0,0.00013673,2]
[339771902,1727977838526,-500.0,0.00013673,2]
[339771903,1727977838535,-500.0,0.00013673,2]
[339771904,1727977838546,-173.34970353,0.00013673,2]
[339771905,1727977838555,-500.0,0.00013673,2]
[339771906,1727977838566,-500.0,0.00013673,2]
[339771907,1727977838576,-45049.0490405,0.00013678,2]
[339771908,1727977838585,-2241.6488261,0.00013678,2]
[339771909,1727977838595,-22822.79531454,0.00013678,2]
[339771949,1727977840447,-271.03154081,0.00013678,2]
[339771951,1727977840461,-157102.36930665,0.00013678,2]
[339771953,1727977840471,-8966.5953044,0.00013678,2]
[339771955,1727977840480,-2241.6488261,0.00013688,2]
[339771956,1727977840490,-151.0,0.00013688,2]
[339771958,1727977840500,-151.0,0.00013688,2]
[339771960,1727977840509,-658.27681,0.00013688,2]
[339771962,1727977840519,-658.27681,0.00013688,2]
[339771964,1727977840528,-151.0,0.00013688,2]
[339771965,1727977840538,-151.0,0.00013688,2]
[339771967,1727977840548,-151.0,0.00013688,2]
[339771969,1727977840559,-151.0,0.00013688,2]
[339771971,1727977840569,-151.0,0.00013688,2]
[339771973,1727977840579,-151.0,0.00013688,2]
[339771974,1727977840589,-249.496122,0.00013688,2]
[339771975,1727977840598,-249.496122,0.00013688,2]
[339771976,1727977840609,-22416.488261,0.00013688,2]
[339771977,1727977840619,-4483.2976522,0.00013689,2]
[339771978,1727977840630,-2241.6488261,0.00013689,2]
[339771979,1727977840640,-700.0,0.0001369,2]
[339771980,1727977840650,-66.95901526,0.00013695,2]
[339771981,1727977840668,-433.04098474,0.00013695,2]
[339771982,1727977840678,-5768.25901526,0.00013697,2]
[339772009,1727977843772,-1422.96765669,0.00013697,2]
[339772010,1727977843783,-671.28234988,0.00013698,2]
[339772011,1727977843826,-2450.0,0.00013698,2]
[339772092,1727977846513,-616.0,0.00013578,2]
[339772097,1727977846670,-384.0,0.00013578,2]
[339772098,1727977846680,-45035.53982021,0.00013698,2]
[339772099,1727977846694,-12109.99807512,0.00013698,2]
[339772100,1727977846704,-500.0,0.00013698,2]
[339772101,1727977846713,-151.0,0.00013698,2]
[339772102,1727977846723,-500.0,0.00013698,2]
[339772103,1727977846733,-500.0,0.00013698,2]
[339772104,1727977846743,-500.0,0.00013698,2]
[339772105,1727977846752,-500.0,0.00013698,2]
[339772106,1727977846762,-500.0,0.00013698,2]
[339772107,1727977846773,-510.21162503,0.00013698,2]
[339772108,1727977846783,-501.78454976,0.00013698,2]
[339772109,1727977846792,-151.0,0.00013698,2]
[339772110,1727977846803,-500.0,0.00013698,2]
[339772111,1727977846813,-500.0,0.00013698,2]
[339772112,1727977846823,-500.0,0.00013698,2]
[339772113,1727977846833,-500.0,0.00013698,2]
[339772114,1727977846843,-500.0,0.00013698,2]
[339772115,1727977846853,-500.0,0.00013698,2]
[339772116,1727977846866,-500.0,0.00013698,2]
[339772117,1727977846876,-863.41,0.00013698,2]
[339772118,1727977846887,-500.0,0.00013698,2]
[339772119,1727977846901,-500.0,0.00013698,2]
[339772120,1727977846912,-500.0,0.00013698,2]
[339772121,1727977846922,-500.0,0.00013698,2]
[339772122,1727977846932,-500.0,0.00013698,2]
[339772123,1727977846946,-471.57241038,0.00013698,2]
[339772124,1727977846957,-500.0,0.00013698,2]
[339772125,1727977846967,-500.0,0.00013698,2]
[339772126,1727977846977,-500.0,0.00013698,2]
[339772127,1727977846987,-500.0,0.00013698,2]
[339772128,1727977846998,-500.0,0.00013698,2]
[339772129,1727977847008,-500.0,0.00013698,2]
[339772130,1727977847018,-500.0,0.00013698,2]
[339772131,1727977847028,-500.0,0.00013698,2]
[339772132,1727977847039,-500.0,0.00013698,2]
[339772133,1727977847049,-500.0,0.00013698,2]
[339772135,1727977847059,-500.0,0.00013698,2]
[339772137,1727977847069,-500.0,0.00013698,2]
[339772138,1727977847080,-501.17746495,0.00013698,2]
[339772139,1727977847090,-500.0,0.00013698,2]
[339772140,1727977847101,-500.0,0.00013698,2]
[339772141,1727977847111,-500.0,0.00013698,2]
[339772142,1727977847122,-500.0,0.00013698,2]
[339772143,1727977847132,-500.0,0.00013698,2]
[339772144,1727977847142,-151.0,0.00013698,2]
[339772145,1727977847152,-503.01502235,0.00013698,2]
[339772146,1727977847162,-500.0,0.00013698,2]
[339772147,1727977847172,-281.54325186,0.00013698,2]
[339772148,1727977847182,-500.0,0.00013698,2]
[339772149,1727977847194,-500.0,0.00013698,2]
[339772150,1727977847205,-638.42,0.00013698,2]
[339772151,1727977847215,-500.0,0.00013698,2]
[339772152,1727977847226,-500.0,0.00013698,2]
[339772153,1727977847237,-500.0,0.00013698,2]
[339772154,1727977847247,-500.0,0.00013698,2]
[339772155,1727977847257,-500.66708954,0.00013698,2]
[339772156,1727977847266,-500.0,0.00013698,2]
[339772157,1727977847277,-151.0,0.00013698,2]
[339772158,1727977847288,-151.0,0.00013698,2]
[339772159,1727977847298,-500.0,0.00013698,2]
[339772160,1727977847309,-151.0,0.00013698,2]
[339772161,1727977847320,-151.0,0.00013698,2]
[339772162,1727977847331,-528.34250813,0.00013698,2]
[339772163,1727977847341,-500.0,0.00013698,2]
[339772164,1727977847351,-505.82,0.00013698,2]
[339772165,1727977847361,-647.56,0.00013698,2]
[339772166,1727977847371,-500.0,0.00013698,2]
[339772167,1727977847382,-500.0,0.00013698,2]
[339772168,1727977847392,-500.0,0.00013698,2]
[339772169,1727977847402,-615.15,0.00013698,2]
[339772170,1727977847413,-500.0,0.00013698,2]
[339772171,1727977847424,-500.0,0.00013698,2]
[339772172,1727977847438,-625.75,0.00013698,2]
[339772173,1727977847449,-500.0,0.00013698,2]
[339772174,1727977847461,-694.62,0.00013698,2]
[339772175,1727977847472,-500.0,0.00013698,2]
[339772176,1727977847482,-500.0,0.00013698,2]
[339772177,1727977847492,-500.0,0.00013698,2]
[339772178,1727977847502,-500.0,0.00013698,2]
[339772179,1727977847511,-500.0,0.00013698,2]
[339772180,1727977847521,-500.0,0.00013698,2]
[339772181,1727977847531,-500.0,0.00013698,2]
[339772182,1727977847543,-707.13,0.00013698,2]
[339772183,1727977847553,-577.11,0.00013698,2]
[339772184,1727977847565,-500.0,0.00013698,2]
[339772185,1727977847575,-500.0,0.00013698,2]
[339772186,1727977847585,-500.0,0.00013698,2]
[339772187,1727977847595,-510.54,0.00013698,2]
[339772188,1727977847606,-500.8860339,0.00013698,2]
[339772189,1727977847615,-666.71,0.00013698,2]
[339772190,1727977847626,-500.0,0.00013698,2]
[339772191,1727977847636,-500.0,0.00013698,2]
[339772192,1727977847646,-500.0,0.00013698,2]
[339772193,1727977847655,-500.0,0.00013698,2]
[339772194,1727977847666,-521.21,0.00013698,2]
[339772195,1727977847676,-500.0,0.00013698,2]
[339772196,1727977847687,-500.0,0.00013698,2]
[339772197,1727977847696,-500.0,0.00013698,2]
[339772198,1727977847707,-500.0,0.00013698,2]
[339772199,1727977847718,-500.0,0.00013698,2]
[339772200,1727977847729,-500.0,0.00013698,2]
[339772201,1727977847739,-1017.71,0.00013698,2]
[339772202,1727977847749,-500.0,0.00013698,2]
[339772203,1727977847760,-2429.07,0.00013698,7]
[339772204,1727977847770,-500.0,0.00013698,2]
[339772205,1727977847779,-500.0,0.00013698,2]
[339772206,1727977847789,-500.0,0.00013698,2]
[339772207,1727977847799,-500.0,0.00013698,2]
[339772208,1727977847808,-500.0,0.00013698,2]
[339772209,1727977847818,-500.0,0.00013698,2]
[339772210,1727977847829,-500.0,0.00013698,2]
[339772211,1727977847839,-1453.68,0.00013698,2]
[339772212,1727977847850,-500.0,0.00013698,2]
[339772213,1727977847862,-340.80765582,0.00013698,2]
[339772214,1727977848075,-500.0,0.00013698,2]
[339772215,1727977848085,-500.0,0.00013698,2]
[339772216,1727977848095,-253.84900497,0.00013698,2]
[339772217,1727977848105,-500.0,0.00013698,2]
[339772218,1727977848115,-500.0,0.00013698,2]
[339772219,1727977848125,-500.0,0.00013698,2]
[339772220,1727977848134,-500.0,0.00013698,2]
[339772221,1727977848143,-500.0,0.00013698,2]
[339772222,1727977848153,-517.42450563,0.00013698,2]
[339772223,1727977848163,-500.0,0.00013698,2]
[339772224,1727977848173,-500.0,0.00013698,2]
[339772225,1727977848182,-500.0,0.00013698,2]
[339772226,1727977848196,-500.0,0.00013698,2]
[339772227,1727977848205,-196.1271399,0.00013698,2]
[339772228,1727977848214,-500.0,0.00013698,2]
[339772229,1727977848224,-407.98202969,0.00013698,2]
[339772230,1727977848233,-500.0,0.00013698,2]
[339772231,1727977848243,-372.43108419,0.00013698,2]
[339772232,1727977848252,-500.0,0.00013698,2]
[339772233,1727977848261,-152.003829,0.00013698,2]
[339772234,1727977848271,-497.46852618,0.00013698,2]
[339772235,1727977848280,-500.0,0.00013698,2]
[339772236,1727977848289,-500.0,0.00013698,2]
[339772237,1727977848298,-500.0,0.00013698,2]
[339772238,1727977848308,-500.0,0.00013698,2]
[339772239,1727977848318,-151.0,0.00013698,2]
[339772240,1727977848327,-151.0,0.00013698,2]
[339772241,1727977848336,-151.0,0.00013698,2]
[339772242,1727977848345,-151.0,0.00013698,2]
[339772243,1727977848355,-151.0,0.00013698,2]
[339772244,1727977848365,-626.6,0.00013698,2]
[339772245,1727977848375,-500.0,0.00013698,2]
[339772246,1727977848384,-500.0,0.00013698,2]
[339772247,1727977848397,-670.55,0.00013698,2]
[339772248,1727977848408,-177.51635053,0.00013698,2]
[339772249,1727977848418,-151.0,0.00013698,2]
[339772250,1727977848427,-500.0,0.00013698,2]
[339772251,1727977848443,-151.0,0.00013698,2]
[339772252,1727977848453,-151.0,0.00013698,2]
[339772253,1727977848462,-500.0,0.00013698,2]
[339772254,1727977848471,-500.0,0.00013698,2]
[339772255,1727977848481,-500.0,0.00013698,2]
[339772256,1727977848490,-500.23713583,0.00013698,2]
[339772257,1727977848500,-500.0,0.00013698,2]
[339772258,1727977848509,-559.33,0.00013698,2]
[339772259,1727977848518,-208.713289,0.00013698,2]
[339772260,1727977848527,-500.0,0.00013698,2]
[339772261,1727977848537,-500.0,0.00013698,2]
[339772262,1727977848546,-500.0,0.00013698,2]
[339772263,1727977848555,-500.0,0.00013698,2]
[339772264,1727977848566,-500.0,0.00013698,2]
[339772265,1727977848576,-500.0,0.00013698,2]
[339772266,1727977848585,-230.45779496,0.00013698,2]
[339772267,1727977848595,-500.0,0.00013698,2]
[339772268,1727977848605,-500.0,0.00013698,2]
[339772269,1727977848615,-1443.16,0.00013698,2]
[339772270,1727977848624,-647.88,0.00013698,2]
[339772271,1727977848634,-500.0,0.00013698,2]
[339772272,1727977848644,-593.83,0.00013698,2]
[339772273,1727977848654,-500.0,0.00013698,2]
[339772274,1727977848664,-444.72192596,0.00013698,2]
[339772275,1727977848673,-500.0,0.00013698,2]
[339772276,1727977848683,-631.77,0.00013698,2]
[339772277,1727977848698,-585.07,0.00013698,2]
[339772278,1727977848708,-500.0,0.00013698,2]
[339772279,1727977848717,-500.0,0.00013698,2]
[339772280,1727977848727,-513.18300212,0.00013698,2]
[339772281,1727977848736,-500.0,0.00013698,2]
[339772282,1727977848746,-500.0,0.00013698,2]
[339772283,1727977848755,-523.15012217,0.00013698,2]
[339772284,1727977848764,-500.0,0.00013698,2]
[339772285,1727977848773,-500.0,0.00013698,2]
[339772286,1727977848783,-554.21,0.00013698,2]
[339772287,1727977848793,-500.0,0.00013698,2]
[339772288,1727977848805,-524.13,0.00013698,2]
[339772289,1727977848818,-500.0,0.00013698,2]
[339772290,1727977848828,-500.0,0.00013698,2]
[339772291,1727977848838,-500.0,0.00013698,2]
[339772292,1727977848848,-151.652082,0.00013698,2]
[339772293,1727977848858,-500.0,0.00013698,2]
[339772294,1727977848874,-771.07,0.00013698,2]
[339772295,1727977848883,-500.0,0.00013698,2]
[339772296,1727977848893,-500.0,0.00013698,2]
[339772297,1727977848904,-500.0,0.00013698,2]
[339772298,1727977848914,-500.0,0.00013698,2]
[339772299,1727977848924,-500.0,0.00013698,2]
[339772300,1727977848934,-647.66,0.00013698,2]
[339772301,1727977848950,-672.7,0.00013698,2]
[339772302,1727977848960,-500.0,0.00013698,2]
[339772303,1727977848970,-500.0,0.00013698,2]
[339772304,1727977848980,-151.0,0.00013698,2]
[339772305,1727977848991,-500.0,0.00013698,2]
[339772306,1727977849000,-500.0,0.00013698,2]
[339772307,1727977849011,-151.0,0.00013698,2]
[339772308,1727977849021,-151.0,0.00013698,2]
[339772309,1727977849032,-151.0,0.00013698,2]
[339772310,1727977849041,-151.0,0.00013698,2]
[339772311,1727977849052,-500.0,0.00013698,2]
[339772312,1727977849063,-743.73,0.00013698,2]
[339772313,1727977849074,-500.0,0.00013698,2]
[339772314,1727977849083,-500.0,0.00013698,2]
[339772315,1727977849094,-560.90686373,0.00013698,2]
[339772316,1727977849104,-500.0,0.00013698,2]
[339772317,1727977849114,-500.0,0.00013698,2]
[339772318,1727977849124,-561.19,0.00013698,2]
[339772319,1727977849134,-151.0,0.00013698,2]
[339772320,1727977849144,-151.0,0.00013698,2]
[339772321,1727977849153,-580.41,0.00013698,2]
[339772322,1727977849162,-582.80050831,0.00013698,2]
[339772323,1727977849172,-500.0,0.00013698,2]
[339772324,1727977849181,-651.3,0.00013698,2]
[339772325,1727977849194,-500.0,0.00013698,2]
[339772326,1727977849203,-719.07,0.00013698,2]
[339772327,1727977849212,-692.17,0.00013698,2]
[339772328,1727977849221,-500.0,0.00013698,2]
[339772329,1727977849231,-151.0,0.00013698,2]
[339772330,1727977849240,-151.0,0.00013698,2]
[339772331,1727977849250,-151.0,0.00013698,2]
[339772332,1727977849259,-151.0,0.00013698,2]
[339772333,1727977849269,-151.0,0.00013698,2]
[339772334,1727977849278,-277.792006,0.00013698,2]
[339772335,1727977849287,-151.0,0.00013698,2]
[339772336,1727977849297,-151.0,0.00013698,2]
[339772337,1727977849306,-500.0,0.00013698,2]
[339772338,1727977849316,-500.0,0.00013698,2]
[339772339,1727977849326,-500.0,0.00013698,2]
[339772340,1727977849335,-639.79,0.00013698,2]
[339772341,1727977849345,-514.74,0.00013698,2]
[339772342,1727977849354,-612.54,0.00013698,2]
[339772343,1727977849364,-500.0,0.00013698,2]
[339772344,1727977849374,-509.42,0.00013698,2]
[339772345,1727977849384,-500.0,0.00013698,2]
[339772346,1727977849394,-500.0,0.00013698,2]
[339772347,1727977849404,-500.0,0.00013698,2]
[339772348,1727977849413,-500.0,0.00013698,2]
[339772349,1727977849423,-151.0,0.00013698,2]
[339772350,1727977849433,-500.0,0.00013698,2]
[339772351,1727977849446,-500.0,0.00013698,2]
[339772352,1727977849455,-500.0,0.00013698,2]
[339772353,1727977849466,-1295.74,0.00013698,2]
[339772354,1727977849476,-659.87,0.00013698,2]
[339772355,1727977849485,-500.0,0.00013698,2]
[339772356,1727977849495,-500.0,0.00013698,2]
[339772357,1727977849505,-500.0,0.00013698,2]
[339772358,1727977849514,-500.0,0.00013698,2]
[339772359,1727977849524,-500.0,0.00013698,2]
[339772360,1727977849534,-500.0,0.00013698,2]
[339772361,1727977849543,-500.0,0.00013698,2]
[339772362,1727977849554,-500.0,0.00013698,2]
[339772363,1727977849564,-500.0,0.00013698,2]